Cogmind - Beta 17 @@@ ROGUE MODE // 2026.07.20 @ 14:36:23 Player: obl-vn Result: Destroyed by 13-21C(R) with Subdweller Machine Gun Performance ------------- Evolutions (0) 0 Regions Visited (2) 400 Robots Destroyed (11) 55 Value Destroyed (207) 207 Prototype IDs (1) 20 Alien Tech Used (0) 0 Bonus (5500) 5500 TOTAL SCORE: 6182 Bonus ------- Prayed to X0-1V1 5000 Major X0-1V1 Interference 500 Cogmind --------- Core Integrity 0/150 Matter 113/150 Energy 229/250 System Corruption 0% Temperature Cool (0) Movement Treading (160) Location -10/Subcaves Parts ------- > --- POWER (1) -------- Ion Engine > --- PROPULSION (2) --- Light Treads (fused) > --- UTILITY (2) ------ X0-1V1's Piety Tracker > --- WEAPON (2) ------- Subdweller Beam Cannon Battle Rifle (fused) > --- INVENTORY (5) ---- Small Storage Unit Subdweller Beam Cannon Shotgun Peak State ------------ > --- POWER ------------ (None) > --- PROPULSION ------- Light Treads Light Treads > --- UTILITY ---------- X0-1V1's Piety Tracker > --- WEAPON ----------- Shotgun Battle Rifle > --- INVENTORY -------- Ion Engine Small Storage Unit Subdweller Beam Cannon Subdweller Beam Cannon [Rating: 19] Favorites ----------- Power Ion Engine Engine Ion Engine Propulsion Light Treads Treads Light Treads Utility X0-1V1's Piety Tracker Device X0-1V1's Piety Tracker Weapon Assault Rifle Energy Cannon Subdweller Beam Cannon Ballistic Gun Assault Rifle Build | -11 -10 -10 ------- Run | Yrd Mat Sub Slots Evolved . | . . . Power . | . . . Propulsion . | . . . Utility . | . . . Weapon . | . . . Parts Attached 10 | 5 1 4 Power 1 | 1 . . Engine 1 | 1 . . Core . | . . . Reactor . | . . . Propulsion 2 | 2 . . Treads 2 | 2 . . Leg . | . . . Wheel . | . . . Hover . | . . . Flight . | . . . Utility 1 | . 1 . Device 1 | . 1 . Storage . | . . . Processor . | . . . Hackware . | . . . Protection . | . . . Artifact . | . . . Weapon 6 | 2 . 4 Energy Gun . | . . . Energy Cannon 2 | . . 2 Ballistic Gun 4 | 2 . 2 Ballistic Cannon . | . . . Launcher . | . . . Special Weapon . | . . . Impact Weapon . | . . . Slashing Weapon . | . . . Piercing Weapon . | . . . Special Melee Weapon . | . . . Unidentified Prototypes 1 | . 1 . Parts Lost 1 | . . 1 Power . | . . . Propulsion 1 | . . 1 Utility . | . . . Weapon . | . . . Highest Loss Streak 1 | . . 1 To Critical Strikes . | . . . Average Backups 3 | 1 2 4 Power . | . 1 . Propulsion . | . . . Utility 1 | . 1 1 Weapon 1 | . . 2 Tool/Special . | . . . Unused Backups 3 | . 2 1 Power . | . . . Propulsion . | . . . Utility 1 | . . 1 Weapon 2 | . 2 . Tool/Special . | . . . Average Slot Usage (%) 58 | . 57 59 Treads 27 | . 28 26 Device 11 | . . 14 Energy Cannon 1 | . . 1 Ballistic Gun 17 | . 28 15 Peak Build Rating 19 | 5 17 19 Average Rating 13 | 2 4 16 On Entrance 7 | . 4 17 Avg Prop Armor Cover (%) 27 | 26 26 28 Naked Turns . | . . . Heaviest Build 16 | 5 4 16 Greatest Support 20 | 3 3 20 Greatest Overweight (x) 3 | 1 1 3 Average Overweight (x) . | . . . Largest Inventory Capacity 5 | 5 5 5 Average Capacity 5 | 5 5 5 Most Carried 5 | 5 4 5 Average Carried 3 | 2 2 4 Final Capacity 5 | 5 5 5 Final Carried 3 | 2 2 3 Class Distribution -------------------- 100% | Mutant Dominant Class ---------------- Mutant | -10/Materials Mutant | -10/Subcaves Resources | -11 -10 -10 ----------- Run | Yrd Mat Sub Matter Collected 362 | 230 60 72 Remotely . | . . . Salvage Created 272 | . 102 170 Parts 26 | . 14 12 Haulers Intercepted . | . . . Recyclers Shooed . | . . . Parts Field Recycled . | . . . Retrieved Matter . | . . . Parts Self-Destructed 21 | . . 21 Prevented . | . . . Parts Restored . | . . . Kills | -11 -10 -10 ------- Run | Yrd Mat Sub Combat Hostiles Destroyed 9 | . 3 6 Guns 8 | . 3 5 Cannons 1 | . . 1 Classes Destroyed 4 | . 3 1 Worker 1 | . 1 . Watcher 1 | . 1 . Swarmer 6 | . 3 3 Subdweller 3 | . . 3 Best Kill Streak 5 | . 5 3 Combat Bots Only 3 | . 3 3 Max Kills in Single Turn 2 | . 2 2 Gunslinging 1 | . . 1 Exploded . | . . . Melee . | . . . Uniques/NPCs Destroyed . | . . . Combat | -11 -10 -10 -------- Run | Yrd Mat Sub Hostile Shots Fired 55 | . 24 31 Missed 15 | . 6 9 Hits 40 | . 18 22 Projectile 40 | . 18 22 Critical Strikes 1 | . 1 . Part Disruptions 1 | . 1 . Damage Taken 599 | . 169 430 Core 196 | . 40 156 Absorbed by Shields . | . . . Core Remaining (%) 100 | 100 . . Volleys Fired 29 | 2 8 19 Largest 2 | 2 2 2 Hottest 105 | 40 40 105 Shots Fired 49 | 4 16 29 Gun 40 | 4 16 20 Cannon 9 | . . 9 Launcher . | . . . Special . | . . . Kinetic 40 | 4 16 20 Thermal 9 | . . 9 Explosive . | . . . Electromagnetic . | . . . Robot Hit Streak 7 | 2 6 7 Robot Miss Streak 2 | 2 2 2 Penetration Max . | . . . Secondary Targets 3 | . 1 2 Max Gunslinging Chain 1 | . 1 1 Shots Hit Robots 30 | 2 10 18 Core Hits 19 | . 10 9 Critical Kills . | . . . Critical Parts Destroyed . | . . . Critical Strikes . | . . . Melee Attacks . | . . . Impact . | . . . Slashing . | . . . Piercing . | . . . Sneak Attacks . | . . . Combat Hostiles . | . . . Follow-up Attacks . | . . . Damage Inflicted 641 | 25 256 360 Guns 394 | 25 124 245 Cannons 115 | . . 115 Explosions 132 | . 132 . Melee . | . . . Ramming . | . . . Kinetic 394 | 25 124 245 Thermal 115 | . . 115 Explosive . | . . . Electromagnetic 132 | . 132 . Impact . | . . . Slashing . | . . . Piercing . | . . . Highest Corruption . | . . . Average Corruption . | . . . Corruption Purged . | . . . Corruption Blocked . | . . . Overload Shots . | . . . Overflow Damage . | . . . Projectiles . | . . . Explosions . | . . . Melee . | . . . Knockbacks . | . . . Impact . | . . . Kinetic . | . . . Secondary . | . . . Self-Inflicted Damage 28 | . 28 . Shots 1 | . 1 . Rammed . | . . . Targets Rammed . | . . . Kicked . | . . . Crushed . | . . . Highest Temperature 24 | . . 24 Average Temperature 18 | . . 18 Received Heat Transfer 36 | . . 36 Siege Activations . | . . . Martial Activations . | . . . Shielding Activations . | . . . Robots Disrupted . | . . . Combat Hostiles . | . . . Robots Corrupted . | . . . Combat Hostiles . | . . . Parts Fried . | . . . Impact Corruptions . | . . . Robots Melted . | . . . Combat Hostiles . | . . . Parts Melted . | . . . Heat Transferred 148 | . . 148 Parts Sabotaged . | . . . Parts Stolen . | . . . Parts Stripped . | . . . Power Chain Reactions . | . . . Alert | -11 -10 -10 ------- Run | Yrd Mat Sub Maximum Alert Level . | . . . Low Security (%) 100 | 100 100 . Level 1 . | . . . Level 2 . | . . . Level 3 . | . . . Level 4 . | . . . Level 5 . | . . . High Security . | . . . Max Security . | . . . Peak Influence 93 | . 93 . Initial . | . . . Average 27 | . 36 . Influence Increases 183 | . 113 70 Destroy 0b10 Robot/C 120 | . 60 60 Destroy 0b10 Robot/NC 10 | . 10 . Destroy Leader 22 | . 12 10 Disable Machine 15 | . 15 . Destroy Structure 1 | . 1 . Partial Spotted 15 | . 15 . Influence Decreases 163 | . 40 123 Entered New Map 36 | . . 36 Time Decay 117 | . 40 77 Lost Part 10 | . . 10 Squads Dispatched . | . . . Investigation . | . . . Extermination . | . . . Reinforcement . | . . . Assault . | . . . Garrison . | . . . Intercept . | . . . Searches Triggered . | . . . Construction Impeded . | . . . Haulers Reinforced . | . . . Active Scanning Responses . | . . . Cargo Convoy Interrupts . | . . . Stealth | -11 -10 -10 --------- Run | Yrd Mat Sub Distress Signals . | . . . Communications Jammed . | . . . Distress Signals . | . . . Times Spotted 18 | . 3 15 Peak Tracking Total 6 | . 3 6 Tactical Retreats 1 | . . 1 Traps | -11 -10 -10 ------- Run | Yrd Mat Sub Traps Triggered . | . . . Indirectly . | . . . Trap Hack Attempts . | . . . Triggered . | . . . Disarmed . | . . . Reprogrammed . | . . . Reused . | . . . Traps Extracted . | . . . Installed . | . . . Triggered . | . . . Machines | -11 -10 -10 ---------- Run | Yrd Mat Sub Machines Disabled 1 | . 1 . Max in Single Turn 1 | . 1 . Machines Repaired . | . . . Machines Dismantled . | . . . Machines Sabotaged . | . . . Overloaded Fab Kills . | . . . Hacking | -11 -10 -10 --------- Run | Yrd Mat Sub Machines Accessed . | . . . Terminals . | . . . Fabricators . | . . . Repair Stations . | . . . Recycling Units . | . . . Scanalyzers . | . . . Garrison Access . | . . . Total Hacks . | . . . Successful . | . . . Failed . | . . . Catastrophic . | . . . Database Lockouts . | . . . Manual 1 | . 1 . Terminals . | . . . Fabricators . | . . . Repair Stations . | . . . Recycling Units . | . . . Scanalyzers . | . . . Garrison Access . | . . . Terminal Hacks . | . . . Fabricator Hacks . | . . . Repair Station Hacks . | . . . Recycling Unit Hacks . | . . . Scanalyzer . | . . . Garrison Access Hacks . | . . . Unauthorized Hacks . | . . . Terminals . | . . . Fabricators . | . . . Repair Stations . | . . . Recycling Units . | . . . Scanalyzers . | . . . Garrison Access . | . . . Data Cores Recovered . | . . . Used . | . . . Hacking Detections . | . . . Full Trace Events . | . . . Feedback Events . | . . . Feedback Blocked . | . . . Robot Schematics Acquired . | . . . Robots Built . | . . . Authchips . | . . . Time . | . . . Total Robot Build Rating . | . . . Part Schematics Acquired . | . . . Parts Built . | . . . Authchips . | . . . Time . | . . . Total Part Build Rating . | . . . Part Studies Acquired . | . . . Parts Repaired . | . . . Time . | . . . Parts Recycled . | . . . Recycled Matter . | . . . Retrieved Matter . | . . . Retrieved Components . | . . . Parts Scanalyzed . | . . . Part Schematics Acquired . | . . . Parts Damaged . | . . . Bothacking | -11 -10 -10 ------------ Run | Yrd Mat Sub Used RIF Installer . | . . . Robots Hacked . | . . . Non-combat . | . . . Combat . | . . . Robot Hacks Applied . | . . . Relay Couplers Released . | . . . Fabnet Peak Effective % . | . . . Robots Rewired . | . . . Allies Hacked . | . . . Hacks Repelled . | . . . Allies | -11 -10 -10 -------- Run | Yrd Mat Sub Total Allies . | . . . Largest Group . | . . . Highest-Rated Group . | . . . Highest-Rated Ally . | . . . Total Orders . | . . . Ally Attacks . | . . . Total Damage . | . . . Kills . | . . . Allies Corrupted . | . . . Allies Melted . | . . . X0-1V1 Amusement Gains 22 | . 22 . Good Acts 3 | . 1 2 Bad Acts 3 | . . 3 Intel | -11 -10 -10 ------- Run | Yrd Mat Sub Active Infowar (turns) . | . . . Robot Analysis Total . | . . . Derelict Logs Recovered 1 | . . 1 Drone Launches . | . . . Drone Recoveries . | . . . Exploration | -11 -10 -10 ------------- Run | Yrd Mat Sub Turns Passed 545 | 39 108 398 Spaces Moved 571 | 42 112 417 Core 540 | 42 112 386 Treads 31 | . . 31 Legs . | . . . Wheels . | . . . Hover . | . . . Flight . | . . . Fastest Speed 50 | 50 50 50 Average Speed 56 | 52 50 58 Slowest Speed 200 | 100 100 200 Overloaded Moves . | . . . Propulsion Burnouts . | . . . Robots Hopped . | . . . Potential Cave-ins . | . . . Cave-ins Triggered . | . . . Exploration Rate (%) 16 | 3 17 28 Regions Visited 2 Branch Regions 1 Pre-discovered Areas . | . . . Known Exits Taken . | . . . Unknown Exits Taken 2 | 1 1 . Scrap Searched . | . . . Spaces Dug 1 | . . 1 Terrain Destroyed 2 | . . 2 Melee . | . . . Projectile 2 | . . 2 AOE . | . . . Terrain Rammed . | . . . Walls Destroyed . | . . . Machines Disabled . | . . . Actions | -11 -10 -10 --------- Run | Yrd Mat Sub Total 751 | 54 150 547 Wait 114 | . 23 91 Move 569 | 41 111 417 Hop . | . . . Pick Up 12 | 5 4 3 Fast Attach 2 | 1 . 1 Attach 11 | 4 1 6 Detach 6 | 1 . 5 Swap 2 | . . 2 Drop 6 | . 3 3 Fire 29 | 2 8 19 Melee . | . . . Ram . | . . . Kick . | . . . Crush . | . . . Escape Stasis . | . . . Rewire . | . . . Trap . | . . . Miscellaneous . | . . . Route ------- -11/Scrapyard -10/Materials (discovered 2 exits: [*Min] / [*Sub]) -10/Subcaves History --------- Turn | Location | Event 3 | -11/Scrapyard | Discovered new exit (range 15) 40 | -11/Scrapyard | Entered Materials 67 | -10/Materials | Discovered new exit (range 10) 127 | -10/Materials | Prayed at D.C.S.S. Altar Unit 141 | -10/Materials | Discovered new exit (range 5) 146 | -10/Materials | Energy generation permanently improved by X0-1V1 (+10; -100 max core) 148 | -10/Materials | Entered Subcaves 149 | -10/Subcaves | Approached by a straggling Scientist 224 | -10/Subcaves | X0-1V1 activates XOMVISION 312 | -10/Subcaves | Build established: Mutant 359 | -10/Subcaves | Shifting Twisted Machinery released Battle Rifle 387 | -10/Subcaves | Shifting Twisted Machinery released Spk. Treads 398 | -10/Subcaves | A Subdweller sparked back to life 398 | -10/Subcaves | A Subdweller sparked back to life 398 | -10/Subcaves | A Subdweller sparked back to life 471 | -10/Subcaves | A swath of the cavern ceiling suddenly collapsed 511 | -10/Subcaves | Core integrity fell below 50% 524 | -10/Subcaves | X0-1V1 sent you into danger 545 | -10/Subcaves | Core integrity fell below 20% 546 | -10/Subcaves | Destroyed by 13-21C(R) with Subdweller Machine Gun Last Messages --------------- 00454_ Flight Unit fries itself beyond repair. 00457_ Acquired 8 matter. 00459_ Lgt. Assault Rifle fries itself beyond repair. 00459_ Acquired 13 matter. 00466_ Flight Unit fries itself beyond repair. 00466_ Lgt. Ion Engine fries itself beyond repair. 00469_ Flight Unit fries itself beyond repair. A swath of the cavern ceiling suddenly collapses. 00511_ Lgt. Treads destroyed. 00518_ Acquired derelict log, extracted data. Data stored: Storage entrances (x1). 00523_ A thin wall crumbles away, revealing a door. 00524_ X0-1V1: "Enjoy the ride!" 00540_ 67-3EX(R) destroyed. 00543_ 22-4PP(R) destroyed. 00546_ X0-1V1 guffaws! Map ----- +----------------------------------------------------+ | ????????????????????????# ##### ###?????????? | | ????????????????????????# #######???????????? | | ????????????????????????# #??????????????? | | ????????????????????????# ##??????????????? | | ????????????????????????## ###???? ##?????? | | ?????????????????????????# ""### #?????? | | ?????????????????????????######## ""# #??????? | | ?#"???????????????????????????# "#### #??????? | | ## ##????????????????????????## ##??# #????? | | ##???????????????????????# #????# ##????? | | ##?????????????????""#??# #??????? #????? | | ##########??????##""#??# ##?????????#????? | | # #???####" #?##% #???????????????? | | #??## " ### #???##? ????????? | | # # #### " #?? ???????? | | ## ## " #??"" ???????? | | % ##? " #???????? | | ## ### " #????????? | | ?## ##### ##" " " #???????? | | ??##### ???#### ### "##"" #???????? | | ??????# ?????## ####?# ###?? #???????? | | ??????# #????# ##???## # #???????? | | ??????#% ##????## #???# #???????? | | ??????## ###??##### ##???## # #??????? | | ???????####????# ###### # ##### #????? | | ???????????????# ##@ ###?????## #????? | | ???????????????# &%[= ##???????????#????? | | ???????????????# R%&! #?????????????????? | | ???????????????# # #[#######?????????????????? | | ???????????????# ######???????????????????????? | | ???????????????## #?????????????????????????????? | | ????????????????###??????????????????????????????? | | ?????????????????????????????????????????????????? | | ?????????????????????????????????????????????????? | | ?????????????????????????????????????????????????? | | ?????????????????????????????????????????????????? | | ?????????????????????????????????????????????????? | | ?????????????????????????????????????????????????? | | ?????????????????????????????????????????????????? | | ?????????????????????????????????????????????????? | | ?????????????????????????????????????????????????? | | ?????????????????????????????????????????????????? | | ?????????????????????????????????????????????????? | | ?????????????????????????????????????????????????? | | ?????????????????????????????????????????????????? | | ?????????????????????????????????????????????????? | | ?????????????????????????????????????????????????? | | ?????????????????????????????????????????????????? | | ?????????????????????????????????????????????????? | | ?????????????????????????????????????????????????? | +----------------------------------------------------+ Best States ------------- Heat Dissipation 25 Energy Generation 20 Energy Capacity 250 Matter Stores 300 Matter Capacity 300 Sight Range 16 Terrain Scan Density 10 Evasion (%) 50 Recoil Reduction 2 Item Schematics ----------------- None Robot Schematics ------------------ None Fabricated ------------ Nothing Repaired ---------- Nothing Studied --------- None Alien Tech Used ----------------- None Achievements -------------- None Challenges ------------ None Game ------ Seed SlugDisassembledNanovents Manual? 0 Play Time 00:09:43 Cumulative 152.1 hours Start 2026.07.20 @ 14:25:42 End 2026.07.20 @ 14:36:23 Sessions 1 Manual Loads 0 Difficulty Rogue Special Mode None Game No. 107 Rogue 107 Adventurer 0 Explorer 0 Win Type - Total 3 Types 2/0/0/1/0/0/0/0/0/0 Lore% 50 Gallery% 59 Achievement% 54 Wizard Run 0 Options --------- Layout 2 ASCII 0 Keyboard 0 Movement Mouse Keybinds 0 Fullscreen 1 Font 48/Smallcaps Map View 50x44 Zoom Use 0% Tactical HUD 1 Map Filters NONE Filters NONE Steam 1 RUN: ec4e9987-303d-4d9f-bc0c-1603602a4397